bitfinex/quotes_ETHUSD_20260307
["timestamp","ask_amount","ask_price","bid_price","bid_amount"]
[1772872864145,0.82782937,1982.9,1982.5,0.55662061]
[1772872864645,2.08861239,1982.9,1982.5,0.55662061]
[1772872865552,0.82782937,1982.9,1982.5,1.81763868]
[1772872865760,0.82782937,1982.9,1982.6,0.55262973]
[1772872867517,0.82782937,1982.8,1982.4,0.54859644]
[1772872870539,0.82782937,1982.8,1982.4,1.80965921]
[1772872872639,0.82782937,1982.8,1982.4,1.81075921]
[1772872873035,0.82882937,1982.8,1982.4,1.81075921]
[1772872874541,0.82882937,1982.8,1982.4,1.26216277]
[1772872874746,2.08967268,1982.8,1982.4,0.0011]
[1772872874946,0.82782937,1982.7,1982.4,0.0011]
[1772872876942,0.001,1982.8,1982.4,1.26219765]
[1772872877146,0.82882937,1982.8,1982.5,0.53017945]
[1772872879616,0.82882937,1982.8,1982.5,1.26097492]
[1772872879617,0.001,1982.8,1982.5,1.26097492]
[1772872879859,0.001,1982.8,1982.6,0.52407011]
[1772872880528,0.001,1983.1,1982.6,0.52307011]
[1772872881347,0.001,1983.1,1982.8,0.52104601]
[1772872883354,0.001,1983.1,1983.0,0.51704092]
[1772872893576,0.001,1983.1,1983.0,1.777757]
[1772872894473,0.86350851,1983.4,1983.0,1.26071608]
[1772872894778,0.86350851,1983.4,1983.0,1.75296963]
[1772872895551,0.86350851,1983.4,1983.1,0.49225355]
[1772872896680,0.86350851,1983.4,1983.1,1.75400173]
[1772872901691,0.86350851,1983.4,1983.1,0.0011]
[1772872901692,0.86350851,1983.3,1983.1,0.0011]
[1772872901895,0.86350851,1983.3,1983.0,0.0011]
[1772872904372,0.86350851,1983.2,1983.0,0.0011]
[1772872906494,5.04210154,1983.5,1983.0,0.0011]
[1772872906666,0.86350851,1983.4,1983.0,0.0011]
[1772872909203,0.86350851,1983.2,1983.0,0.0011]
[1772872909501,0.86350851,1983.2,1983.1,0.0011]
[1772872911198,1.26065251,1983.1,1982.8,0.0011]
[1772872911403,0.86350851,1983.0,1982.5,3.09410301]
[1772872912383,0.86350851,1983.0,1982.6,0.4623234]
[1772872914708,1.26073293,1983.0,1982.6,0.4623234]
[1772872914876,0.86350851,1982.9,1982.6,1.72328307]
[1772872917910,0.86350851,1982.8,1982.4,1.26215996]
[1772872918480,0.86350851,1982.8,1982.4,1.71359746]
[1772872920179,1.26084456,1982.8,1982.4,1.71359746]
[1772872920381,0.80371367,1982.7,1982.4,1.71359746]
[1772872921308,0.80371367,1982.7,1982.4,0.4525375]
[1772872921506,0.80371367,1982.7,1982.4,0.0011]
[1772872922083,2.0620401,1982.6,1982.5,0.0011]
[1772872923704,0.80106966,1982.5,1982.4,0.0011]
[1772872924817,2.0621037,1982.5,1982.4,0.0011]
[1772872925523,0.80106966,1982.5,1982.4,0.0011]
[1772872925824,2.0621037,1982.5,1982.4,0.0011]
[1772872929023,0.80106966,1982.4,1982.3,0.0011]
[1772872929229,0.80106966,1982.4,1982.2,0.0011]
[1772872929597,5.04395954,1982.6,1982.2,0.43328692]
[1772872929598,0.80106966,1982.6,1982.2,0.43328692]
[1772872933039,0.80106966,1982.6,1982.2,1.69450045]
[1772872933333,2.06204278,1982.6,1982.2,1.69450045]
[1772872934040,2.06204278,1982.6,1982.3,0.0011]
[1772872934201,0.001,1982.5,1982.3,0.42358873]
[1772872937337,0.80106966,1982.8,1982.4,0.41461858]
[1772872937812,2.06189187,1982.9,1982.4,0.41461858]
[1772872938917,0.80106966,1983.1,1982.4,0.41461858]
[1772872939412,0.80106966,1983.0,1982.5,1.66950598]
[1772872941740,0.80106966,1983.0,1982.6,0.400825]
[1772872945053,0.80106966,1983.0,1982.7,1.26090684]
[1772872945554,0.80106966,1983.0,1982.6,1.66174531]
[1772872946125,0.80106966,1983.0,1982.7,0.39081033]
[1772872946323,1.26170826,1983.1,1982.7,0.39081033]
[1772872946324,0.80206966,1983.1,1982.7,0.39081033]
[1772872947128,0.80206966,1983.1,1982.8,1.64918433]
[1772872948056,0.80206966,1983.1,1982.8,0.38834108]
[1772872948756,0.80206966,1983.1,1982.7,1.64431726]
[1772872952360,0.80206966,1983.1,1982.5,0.37493215]
[1772872956265,0.80206966,1983.1,1982.6,1.26097044]
[1772872956567,0.80206966,1983.1,1982.7,0.36600698]
[1772872958044,0.79068352,1983.0,1982.7,0.36600698]
[1772872958551,0.001,1983.0,1982.8,1.26084325]
[1772872959469,0.001,1983.0,1982.8,1.61990162]
[1772872963375,0.79068352,1983.0,1982.7,1.26085501]
[1772872963672,0.79068352,1983.0,1982.6,1.6182729]
[1772872966777,0.79068352,1983.0,1982.6,1.26205865]
[1772872967075,0.79068352,1983.0,1982.6,1.61566189]
[1772872969453,0.79068352,1983.0,1982.6,0.0011]
[1772872969673,0.78968352,1982.9,1982.6,1.26206222]
[1772872969973,0.78968352,1982.9,1982.6,0.0011]
[1772872970981,0.001,1983.0,1982.6,0.0011]
[1772872971185,0.78968352,1982.9,1982.6,0.0011]
[1772872972778,0.78968352,1982.7,1982.6,0.0011]
[1772872983891,0.74968856,1982.6,1982.2,0.0011]
[1772872984075,0.74968856,1982.6,1982.2,0.34497492]
[1772872985489,0.74968856,1982.6,1982.2,1.60619297]
[1772872985990,2.0106717,1982.6,1982.2,0.34497492]
[1772872986286,0.74968856,1982.5,1982.2,0.34497492]
[1772872987711,0.74968856,1982.5,1982.2,1.60619622]
[1772872987996,0.74968856,1982.5,1982.2,0.34497492]
[1772872990586,0.74968856,1982.5,1982.2,0.0011]
[1772872991175,0.74968856,1982.5,1982.2,1.26231815]
[1772872991573,0.74968856,1982.5,1982.2,1.60232925]
[1772872991895,2.01063723,1982.7,1982.3,0.3400111]
[1772872992091,0.74968856,1982.6,1982.3,0.3400111]
[1772872992701,0.74968856,1982.5,1982.2,0.34065045]
[1772872993497,0.74968856,1982.5,1982.3,0.0011]
[1772872993791,0.75068856,1982.5,1982.3,0.0011]
[1772872994201,0.001,1982.5,1982.3,0.0011]
[1772872994498,0.001,1982.5,1982.3,0.34020219]
[1772872995798,0.75068856,1982.5,1982.3,0.0011]
[1772872995982,0.74968856,1982.4,1982.3,0.0011]
[1772873000493,0.001,1982.5,1982.3,0.0011]
[1772873000695,0.75068856,1982.5,1982.3,0.0011]
[1772873004213,0.74968856,1982.4,1982.3,0.0011]
[1772873005918,0.75068856,1982.4,1982.3,0.0011]
[1772873009724,0.75068856,1982.4,1982.1,0.0011]
[1772873009929,0.001,1982.4,1982.1,0.33467518]
[1772873010106,0.001,1982.4,1982.2,0.33357518]
[1772873017336,0.001,1982.4,1982.3,0.0011]
[1772873021622,0.001,1982.4,1982.3,0.33047246]
[1772873022013,0.001,1982.4,1982.3,0.0011]
[1772873022515,0.001,1982.4,1982.3,0.33014846]
[1772873023020,0.001,1982.4,1982.3,0.0011]
[1772873035555,0.77208287,1982.4,1982.3,0.0011]
[1772873036354,0.77108287,1982.3,1981.5,0.32486863]
[1772873037272,0.77108287,1982.3,1981.6,1.26160678]
[1772873037452,0.001,1982.4,1981.7,0.32459613]
[1772873037658,0.001,1982.4,1981.8,0.39369483]
[1772873038174,0.77208287,1982.4,1981.8,0.39369483]
[1772873040874,0.77208287,1982.4,1981.9,1.26141581]
[1772873041068,0.77208287,1982.4,1982.0,0.38730979]
[1772873041269,0.001,1982.3,1982.0,0.38730979]
[1772873045399,0.001,1982.3,1982.1,0.37899905]
[1772873047821,0.001,1982.3,1982.2,1.2612249]
[1772873049686,0.001,1982.3,1982.1,0.37899905]
[1772873050002,0.79464139,1982.3,1981.9,0.36909905]
[1772873053403,0.79464139,1982.3,1982.0,0.36434407]
[1772873053604,0.001,1982.2,1982.0,0.36434407]
[1772873057606,0.79364139,1982.1,1982.0,0.0011]
[1772873057979,0.001,1982.2,1982.0,0.0011]
[1772873062414,0.79464139,1982.2,1982.0,0.0011]
[1772873064614,0.79364139,1982.1,1982.0,0.0011]
[1772873065488,0.79364139,1982.1,1981.9,0.0011]
[1772873066988,2.05499355,1982.0,1981.9,0.0011]
[1772873067717,0.79364139,1982.0,1981.9,0.0011]
[1772873070193,0.001,1982.1,1981.9,0.0011]
[1772873071521,0.79464139,1982.1,1981.9,0.0011]
[1772873072841,2.05593735,1982.1,1981.9,0.0011]
[1772873073531,0.79655634,1982.0,1981.9,0.0011]
[1772873075398,0.79755634,1982.1,1981.9,0.0011]
[1772873079234,2.05887095,1982.1,1981.9,0.0011]
[1772873079448,0.79655634,1982.0,1981.9,0.0011]
[1772873080447,0.79755634,1982.0,1981.9,0.0011]
[1772873083810,0.001,1982.0,1981.9,0.0011]
[1772873089656,0.79755634,1982.0,1981.9,0.0011]
[1772873090978,1.26235216,1982.0,1981.8,0.0011]
[1772873091242,0.79655634,1981.9,1981.7,1.3741]
[1772873092336,0.001,1982.0,1981.8,0.31312702]
[1772873092727,0.001,1981.9,1981.8,0.31312702]
[1772873095149,0.001,1981.9,1981.7,1.3741]
[1772873095448,0.001,1981.9,1981.7,1.68681145]
[1772873104591,0.001,1981.9,1981.8,0.0011]
[1772873105391,0.79250266,1981.9,1981.8,0.0011]
[1772873107171,2.05391847,1981.9,1981.8,0.0011]
[1772873107372,0.79150266,1981.8,1981.7,0.0011]
[1772873107702,0.79150266,1981.8,1981.5,0.0011]
[1772873109012,0.79150266,1981.7,1981.5,0.0011]
[1772873112612,0.001,1981.9,1981.3,2.5441648]
[1772873112815,2.05298212,1981.8,1981.4,0.3077527]
[1772873113518,0.79150266,1981.8,1981.4,0.3077527]
[1772873116119,0.79150266,1981.7,1981.3,2.2364121]
[1772873116825,0.79150266,1981.7,1981.3,2.5387244]
[1772873116993,0.79150266,1981.7,1981.5,0.0011]
[1772873120819,2.05305131,1981.7,1981.5,0.0011]
[1772873121123,0.79150266,1981.7,1981.5,0.0011]
[1772873121296,1.26154519,1981.7,1981.5,0.0011]
[1772873121496,0.79150266,1981.6,1981.5,0.0011]
[1772873123223,0.79150266,1981.7,1981.5,0.0011]
[1772873124321,0.001,1981.8,1981.5,0.29449332]
[1772873125295,0.001,1981.8,1981.5,0.2932751]
[1772873127722,0.79250266,1981.8,1981.5,0.2932751]
[1772873129701,0.79250266,1981.8,1981.6,0.0011]
[1772873129897,0.001,1981.7,1981.6,0.0011]
[1772873142633,1.26245937,1981.9,1981.6,0.0011]
[1772873142634,0.001,1981.9,1981.6,0.27262763]
[1772873148162,0.001,1981.9,1981.7,0.26580268]
[1772873154647,0.001,1981.9,1981.8,0.0011]
[1772873164326,0.001,1981.9,1981.8,0.25198163]
[1772873168486,0.001,1981.9,1981.8,1.51346109]
[1772873168866,0.001,1981.9,1981.8,2.88546109]
[1772873169069,0.001,1982.1,1981.8,2.88546109]
[1772873169286,0.001,1982.1,1981.9,0.24727086]
[1772873172184,0.001,1982.1,1981.9,1.50868614]
[1772873178692,0.001,1982.1,1981.9,1.50978614]
[1772873178991,0.001,1982.0,1981.9,1.50978614]
[1772873192231,0.001,1982.0,1981.9,0.0011]
[1772873217383,0.71652618,1982.0,1981.8,1.3731]
[1772873227102,0.71652618,1982.0,1981.9,0.0011]
[1772873239224,0.71652618,1982.0,1981.8,1.3731]
[1772873239404,0.66973459,1981.9,1981.8,1.3646]
[1772873239735,0.66973459,1981.9,1981.7,0.0011]
[1772873240930,0.66973459,1981.9,1981.5,0.0011]
[1772873240931,0.66973459,1981.8,1981.5,0.0011]
[1772873241229,1.26154311,1981.7,1981.5,0.0011]
[1772873241428,0.66973459,1981.6,1981.5,0.0011]
[1772873241807,0.66973459,1981.6,1981.4,0.0011]
[1772873243294,0.61901607,1981.6,1981.4,0.0011]
[1772873244929,0.66973459,1981.5,1981.4,0.0011]
[1772873245223,1.26159377,1981.7,1981.4,0.49635811]
[1772873245224,0.66973459,1981.7,1981.4,0.49635811]
[1772873245404,1.93119942,1981.9,1981.4,0.49635811]
[1772873245611,0.66973459,1981.8,1981.4,0.49635811]
[1772873247145,0.66973459,1981.8,1981.5,1.26167045]
[1772873249549,0.66973459,1981.7,1981.4,0.0011]
[1772873250706,0.66973459,1981.7,1981.5,0.0011]
[1772873251224,0.66973459,1981.6,1981.4,0.0011]
[1772873253337,0.64916307,1981.5,1981.4,0.0011]
[1772873254342,0.64916307,1981.7,1981.4,0.67443112]
[1772873254539,0.64916307,1981.7,1981.4,0.0011]
[1772873255142,1.91071938,1981.7,1981.4,0.0011]
[1772873255440,0.64916307,1981.6,1981.4,0.0011]
[1772873256542,1.91071938,1981.7,1981.4,0.0011]
[1772873257326,0.64916307,1981.6,1981.4,0.0011]
[1772873259639,1.26253288,1981.8,1981.4,0.0011]
[1772873259844,0.64916307,1981.7,1981.4,0.0011]
[1772873261644,0.64916307,1981.5,1981.4,0.0011]
[1772873268951,1.91180007,1981.6,1981.3,1e-08]
[1772873270161,0.001,1981.6,1981.4,0.67333112]
[1772873271061,0.001,1981.6,1981.3,1.93511862]
[1772873271847,0.65016307,1981.6,1981.3,1e-08]
[1772873274736,0.65016307,1981.6,1981.4,0.0011]
[1772873275137,0.65016307,1981.5,1981.4,0.0011]
[1772873280060,0.001,1981.5,1981.4,0.68507896]
[1772873280254,0.001,1981.6,1981.5,0.68397896]
[1772873280454,2.73918112,1981.6,1981.5,0.68397896]
[1772873281274,1.67703882,1981.6,1981.5,0.68397896]
[1772873281480,1.67703882,1981.6,1981.4,0.68507896]
[1772873281644,1.90105715,1981.7,1981.4,0.68507896]
[1772873281844,0.63950369,1981.7,1981.4,0.68507896]
[1772873282364,1.90105745,1981.7,1981.4,0.68507896]
[1772873282662,0.67003389,1981.6,1981.4,0.0011]
[1772873283869,0.67003389,1981.5,1981.4,0.0011]
[1772873286070,0.67003389,1981.4,1981.2,0.0011]
[1772873286274,0.6193229,1981.4,1981.2,0.0011]
[1772873293082,0.001,1981.5,1981.2,0.0011]
[1772873293083,0.67003389,1981.3,1981.2,0.0011]
[1772873293980,1.26271423,1981.5,1981.2,0.0011]
[1772873294188,3.69075484,1981.4,1981.2,0.0011]
[1772873294354,0.67003389,1981.4,1981.2,0.0011]
[1772873296787,0.67003389,1981.3,1981.2,0.0011]
[1772873297686,1.93275452,1981.5,1981.2,0.69962315]
[1772873297887,3.02030855,1981.4,1981.2,0.69962315]
[1772873298479,4.35088903,1981.8,1981.3,0.69852315]
[1772873298686,3.69050035,1981.7,1981.3,0.69852315]
[1772873298985,3.02046646,1981.6,1981.3,0.69852315]
[1772873299279,3.02046646,1981.6,1981.3,0.69962315]
[1772873299492,0.001,1981.5,1981.4,0.69852315]
[1772873304901,0.001,1981.5,1981.3,1.96140776]
[1772873309404,0.67103389,1981.5,1981.3,0.0011]
[1772873311395,0.67103389,1981.5,1981.4,0.0011]
[1772873317502,3.69140391,1981.5,1981.4,0.0011]
[1772873329930,0.63425804,1981.4,1981.3,0.0011]
[1772873330218,3.65462806,1981.4,1981.3,0.0011]
[1772873334239,4.91636218,1981.4,1981.3,0.0011]
[1772873334531,3.65462806,1981.4,1981.3,0.0011]
[1772873334826,3.02037002,1981.4,1981.3,0.0011]
[1772873335131,3.02137002,1981.4,1981.3,0.0011]
[1772873335529,4.28310414,1981.4,1981.3,0.0011]
[1772873335736,3.02137002,1981.4,1981.3,0.0011]
[1772873339425,3.69227619,1981.4,1981.3,0.0011]
[1772873340148,4.95401031,1981.4,1981.3,0.0011]
[1772873341245,0.67090617,1981.3,1981.2,0.0011]
[1772873341441,4.28216782,1981.3,1981.1,0.0011]
[1772873341638,0.67090617,1981.2,1981.1,0.0011]
[1772873341838,0.67090617,1981.2,1981.0,0.0011]
[1772873344137,1.93279533,1981.2,1981.0,0.0011]
[1772873344925,0.64346523,1981.1,1981.0,0.0011]
[1772873347150,0.64446523,1981.1,1981.0,0.0011]
[1772873347447,0.001,1981.1,1981.0,0.62734312]
[1772873348052,0.001,1981.1,1981.0,0.0011]
[1772873349741,0.64446523,1981.1,1981.0,0.0011]
[1772873350729,0.64446523,1981.1,1980.9,1.418]
[1772873351147,0.001,1981.1,1980.8,1.26320678]
[1772873351348,0.001,1981.1,1980.9,0.62624312]
[1772873352853,2.00710916,1981.2,1981.0,0.62624312]
[1772873353154,0.001,1981.4,1981.0,0.62624312]
[1772873354633,0.001,1981.4,1981.2,0.62624312]
[1772873358360,0.001,1981.4,1981.3,0.62624312]
[1772873361460,0.001,1981.4,1981.2,0.62624312]
[1772873366166,0.001,1981.4,1981.2,1.88806861]
[1772873366463,0.001,1981.4,1981.3,0.62624312]
[1772873370970,0.001,1981.4,1981.2,1.88806861]
[1772873372042,0.001,1981.4,1981.3,0.0011]
[1772873375373,0.001,1981.5,1981.4,0.6222341]
[1772873375685,0.001,1981.5,1981.3,0.0011]
[1772873376601,0.68515574,1981.5,1981.3,0.0011]
[1772873381199,0.001,1981.5,1981.3,0.6233341]
[1772873386286,0.001,1981.4,1981.3,0.6233341]
[1772873394002,0.001,1981.4,1981.3,1.8851319]
[1772873395310,0.68515574,1981.8,1981.4,0.6222341]
[1772873396808,0.68515574,1981.8,1981.5,1.88390455]
[1772873398615,0.001,1981.8,1981.6,1.88215066]
[1772873398810,0.001,1981.8,1981.7,0.62056548]
[1772873400403,0.001,1981.8,1981.6,1.26158518]
[1772873400597,0.61646843,1981.8,1981.5,3.30221753]
[1772873405719,0.001,1981.8,1981.5,3.30221753]
[1772873405920,0.001,1981.8,1981.6,0.67231306]
[1772873408690,0.001,1981.8,1981.5,2.09231306]
[1772873409394,0.6303837,1981.8,1981.5,2.09231306]
[1772873409594,0.6303837,1981.8,1981.5,1.42]
[1772873411122,1.89186609,1981.8,1981.6,0.0011]
[1772873411319,0.6293837,1981.7,1981.6,0.0011]
[1772873411513,0.6303837,1981.7,1981.6,0.0011]
[1772873424243,1.89192681,1981.7,1981.6,0.0011]
[1772873426448,0.001,1981.7,1981.6,0.0011]
[1772873426650,0.001,1981.8,1981.7,0.67231306]
[1772873427828,0.001,1981.8,1981.6,0.67341306]
[1772873431758,0.001,1981.8,1981.6,1.93501606]
[1772873435236,0.001,1981.7,1981.6,1.93501606]
[1772873437264,0.001,1981.7,1981.6,0.67341306]
[1772873438161,0.001,1981.7,1981.6,1.93501984]
[1772873440165,0.001,1981.7,1981.6,0.67341306]
[1772873440931,0.001,1981.7,1981.6,0.0011]
[1772873441736,0.66556705,1981.7,1981.6,0.0011]
[1772873443064,0.66556705,1981.7,1981.5,0.0011]
[1772873443065,0.66556705,1981.7,1981.4,0.0011]
[1772873445897,0.66456705,1981.6,1981.4,0.0011]
[1772873447046,0.66456705,1981.6,1981.5,0.0011]
[1772873452675,1.92617383,1981.6,1981.5,0.0011]
[1772873454075,0.66456705,1981.5,1981.3,0.0011]
[1772873458485,0.66456705,1981.5,1981.4,0.0011]
[1772873458784,0.66556705,1981.5,1981.4,0.0011]
[1772873460489,0.001,1981.5,1981.4,0.63546383]
[1772873460786,0.001,1981.7,1981.5,0.63436383]
[1772873468680,0.001,1981.7,1981.6,0.63117117]
[1772873469187,0.001,1981.8,1981.7,0.63117117]
[1772873476897,0.001,1982.0,1981.7,0.63117117]
[1772873477076,0.001,1982.0,1981.8,0.63117117]
[1772873478903,0.001,1982.0,1981.8,1.89264569]
[1772873480504,0.001,1982.0,1981.9,0.63117117]
[1772873481101,0.001,1982.0,1981.8,1.89264569]
[1772873482279,0.001,1982.0,1981.9,0.0011]
[1772873486898,1.10562621,1982.2,1981.9,0.0011]
[1772873487209,1.10562621,1982.2,1981.9,0.63227117]
[1772873494112,0.62112291,1982.0,1981.9,0.0011]
[1772873495827,0.62212291,1982.1,1981.9,0.0011]
[1772873496013,1.88341295,1982.1,1981.9,0.0011]
[1772873498728,0.62212291,1982.1,1981.9,0.0011]
[1772873500299,1.88341732,1982.1,1981.9,0.0011]
[1772873502307,0.62212291,1982.1,1981.9,0.0011]
[1772873502924,1.88345429,1982.1,1981.9,0.0011]
[1772873503125,0.62212291,1982.1,1981.9,0.0011]
[1772873506025,1.88341144,1982.1,1982.0,0.0011]
[1772873510146,0.62212291,1982.1,1982.0,0.0011]
[1772873515340,1.88341144,1982.1,1982.0,0.0011]
[1772873515947,0.62212291,1982.1,1982.0,0.0011]
[1772873516240,0.001,1982.1,1982.0,0.0011]
[1772873517556,0.001,1982.1,1982.0,0.64743684]
[1772873517940,1.26223434,1982.2,1982.1,0.004]
[1772873518132,1.26223434,1982.2,1982.0,0.64743684]
[1772873518751,1.87414266,1982.2,1982.0,0.0011]
[1772873525520,0.59662752,1982.1,1981.8,0.0011]
[1772873527748,1.85793011,1982.1,1981.8,0.0011]
[1772873529549,1.26130259,1982.1,1981.8,0.0011]
[1772873529721,0.59662752,1982.0,1981.9,0.0011]
[1772873538327,1.85797968,1982.0,1981.9,0.0011]
[1772873544030,0.59662752,1982.0,1981.9,0.0011]
[1772873545848,1.26233916,1982.1,1981.9,0.0011]
[1772873546161,0.59762752,1982.1,1981.9,0.0011]
[1772873547058,0.59762752,1982.1,1981.9,0.60934542]
[1772873547059,0.001,1982.1,1981.9,0.60934542]
[1772873547359,0.001,1982.2,1982.0,0.60824542]
[1772873548861,0.001,1982.2,1982.0,1.86955593]
[1772873549028,0.001,1982.2,1982.1,0.60824542]
[1772873553250,0.001,1982.3,1982.2,0.60607515]
[1772873557266,0.001,1982.3,1982.0,0.60717515]
[1772873563771,0.6448269,1982.3,1982.0,0.60717515]
[1772873564348,0.6448269,1982.3,1982.0,0.0011]
[1772873564750,0.6448269,1982.3,1982.0,0.60717515]
[1772873565283,0.6448269,1982.3,1982.1,0.0011]
[1772873565662,0.001,1982.2,1982.1,0.0011]
[1772873565872,0.001,1982.2,1982.1,0.60717515]
[1772873566679,0.001,1982.2,1982.1,0.0011]
[1772873570650,0.001,1982.2,1982.1,0.60717515]
[1772873585489,0.001,1982.2,1982.1,1.86846368]
[1772873594300,0.001,1982.2,1982.1,0.60717515]
[1772873597306,0.001,1982.2,1982.1,0.0011]
[1772873599708,0.001,1982.2,1982.1,1.26238853]
[1772873605393,0.001,1982.3,1982.2,0.59092724]
[1772873612817,0.001,1982.3,1982.2,0.59202724]
[1772873620803,0.001,1982.3,1982.2,0.0011]
[1772873641445,0.59679439,1982.3,1982.2,0.0011]
[1772873641741,0.59679439,1982.3,1982.1,0.0011]
[1772873649237,0.59679439,1982.3,1982.2,0.0011]
[1772873651751,1.85795566,1982.3,1982.2,0.0011]
[1772873656331,0.59679439,1982.3,1982.2,0.0011]
[1772873657541,1.85795566,1982.3,1982.2,0.0011]
[1772873660362,0.001,1982.4,1982.2,0.0011]
[1772873660558,0.001,1982.4,1982.3,0.61069638]
[1772873667875,0.001,1982.4,1982.2,0.0011]
[1772873668377,0.57159789,1982.4,1982.2,0.0011]
[1772873672885,1.83269554,1982.4,1982.3,0.0011]
[1772873673182,0.61863457,1982.3,1982.1,0.0011]
[1772873676166,1.87980674,1982.3,1982.1,0.0011]
[1772873685293,1.87980674,1982.3,1982.2,0.0011]
[1772873686690,0.61763457,1982.2,1981.8,0.0011]
[1772873687096,0.61763457,1982.0,1981.8,0.0011]
[1772873689896,0.61763457,1981.9,1981.8,0.0011]
[1772873690098,0.61763457,1981.9,1981.6,0.56567265]
[1772873690099,0.61763457,1981.9,1981.6,0.0011]
[1772873690305,0.61763457,1981.9,1981.4,0.0011]
[1772873690306,0.92163246,1981.6,1981.4,0.0011]
[1772873691771,0.61763457,1981.5,1981.4,0.0011]
[1772873692201,1.87930502,1981.5,1981.4,0.0011]
[1772873694813,1.87930502,1981.5,1981.3,0.0011]
[1772873694814,0.61763457,1981.4,1980.7,0.56457265]
[1772873696705,1.2617978,1981.3,1980.9,0.56457265]
[1772873697414,1.87943237,1981.3,1980.9,0.56457265]
[1772873697614,1.87943237,1981.3,1981.2,0.0011]
[1772873701321,5.04643389,1981.6,1981.2,0.0011]
[1772873701322,0.57564619,1981.5,1981.2,0.57343803]
[1772873701893,1.26173412,1981.4,1981.2,0.57343803]
[1772873703109,1.83759465,1981.4,1981.0,0.27683787]
[1772873708298,0.57586053,1981.3,1980.8,0.27892575]
[1772873708500,0.57586053,1981.2,1980.6,0.27892575]
[1772873708799,0.57586053,1981.0,1980.6,0.27892575]
[1772873709508,0.57586053,1981.0,1980.5,0.27933792]
[1772873710521,0.57586053,1981.0,1980.2,1.26246346]
[1772873710825,0.57586053,1980.8,1980.2,0.28083765]
[1772873711048,0.57586053,1980.6,1979.8,2.91581685]
[1772873711334,1.83804056,1980.7,1979.9,0.28011365]
[1772873711822,0.57586053,1980.6,1979.9,0.28011365]
[1772873714199,1.83811876,1980.6,1980.1,0.27798168]
[1772873714638,0.57586053,1980.5,1980.1,0.27798168]
[1772873715194,1.26225823,1980.6,1979.9,0.27728944]
[1772873715195,0.57586053,1980.3,1979.9,0.27728944]
[1772873715442,0.57586053,1980.3,1979.8,1.373]
[1772873715721,0.57586053,1980.1,1979.5,1.26294197]
[1772873715913,0.57586053,1980.1,1979.5,1.53955283]
[1772873716222,1.262604,1980.1,1979.6,1.71675275]
[1772873716397,0.57586053,1980.0,1979.7,0.27661086]
[1772873716602,0.57586053,1980.2,1979.7,0.27661086]
[1772873716802,0.57586053,1980.1,1979.7,0.27661086]
[1772873717900,0.57586053,1980.2,1979.7,0.27661086]
[1772873718302,0.57586053,1980.2,1979.9,0.27525932]
[1772873719021,0.57586053,1980.1,1979.7,0.27459373]
[1772873719830,0.57586053,1980.1,1979.6,1.71673618]
[1772873720227,0.57586053,1979.9,1979.6,0.45388085]
[1772873720617,0.57586053,1979.9,1979.3,0.5202205]
[1772873720820,0.57586053,1979.9,1979.5,0.51975488]
[1772873721329,0.57586053,1979.9,1978.9,1.26300805]
[1772873721531,0.57586053,1979.9,1979.1,0.51975488]
[1772873721906,0.57586053,1979.9,1979.7,0.0011]
[1772873722329,0.57586053,1980.1,1979.7,0.52040121]
[1772873723327,0.57586053,1980.1,1979.7,1.78340926]
[1772873723832,0.57586053,1980.1,1979.8,1.78141771]
[1772873724910,0.57586053,1980.1,1979.8,3.0441371]
[1772873725114,0.57586053,1980.3,1979.9,1.78098661]
[1772873726134,0.57586053,1980.3,1979.9,1.26300805]
[1772873726435,0.57586053,1980.3,1979.7,1.78139981]
[1772873726607,0.57586053,1980.3,1979.8,1.26300805]
[1772873726807,0.57586053,1980.1,1979.8,1.26300805]
[1772873728829,0.57586053,1980.0,1979.8,1.26300805]
[1772873730718,0.57586053,1980.0,1979.7,0.52261111]
[1772873732135,0.5733911,1979.9,1979.7,0.52261111]
[1772873734236,0.5733911,1979.8,1979.7,0.52371111]
[1772873734638,0.5733911,1979.8,1979.5,0.0011]
[1772873734824,0.5733911,1979.8,1979.6,0.52261111]
[1772873735227,0.5733911,1979.8,1979.4,1.3391]
[1772873736244,0.5733911,1979.8,1979.5,0.59857993]
[1772873736817,0.5733911,1979.8,1979.4,1.86268602]
[1772873737342,0.5733911,1979.8,1979.4,1.26410609]
[1772873738352,0.5733911,1979.7,1979.4,0.0011]
[1772873740733,0.5733911,1979.7,1979.4,0.59967993]
[1772873741054,5.05078666,1979.9,1979.4,0.59967993]
[1772873741055,0.5733911,1979.9,1979.4,0.59967993]
[1772873741233,0.5733911,1980.0,1979.4,0.59967993]
[1772873741550,2.72722609,1979.9,1979.4,0.59967993]
[1772873742825,2.72722609,1979.9,1979.6,0.59857993]
[1772873744960,0.5733911,1980.1,1979.8,0.59857993]
[1772873745261,2.73073668,1980.0,1979.8,0.59857993]
[1772873745438,2.73073668,1979.9,1979.8,0.59857993]
[1772873745842,2.73073668,1980.0,1979.8,0.59857993]
[1772873746038,2.73073668,1979.9,1979.8,0.59857993]
[1772873746232,0.5733911,1980.1,1979.8,0.59857993]
[1772873746963,0.5733911,1980.1,1979.8,1.86130888]
[1772873747967,0.5733911,1980.2,1979.9,0.59857993]
[1772873750395,1.83589737,1980.2,1979.9,0.14857993]
[1772873750794,1.83589737,1980.2,1979.7,0.30733548]
[1772873750982,0.5733911,1980.1,1979.7,0.30733548]
[1772873752181,0.5733911,1980.1,1979.6,1.57035728]
[1772873752382,0.5733911,1980.0,1979.7,0.30750189]
[1772873753067,0.5733911,1980.0,1979.6,1.57052187]
[1772873753270,0.5733911,1980.0,1979.7,0.30766648]
[1772873754896,0.5733911,1979.9,1979.6,0.3079936]
[1772873756292,1.83600493,1980.1,1979.6,0.3079936]
[1772873756496,0.5733911,1980.0,1979.6,0.3079936]
[1772873758313,1.26269003,1979.9,1979.6,0.3079936]
[1772873758520,0.5733911,1980.0,1979.4,0.0011]
[1772873758521,0.57658899,1979.7,1979.4,0.0011]
[1772873758818,0.57658899,1979.7,1979.2,0.0011]
[1772873759772,0.57658899,1979.5,1979.0,0.3089371]
[1772873760071,0.57658899,1979.5,1978.9,2.97525186]
[1772873760297,1.83953417,1979.5,1979.4,0.0011]
[1772873760498,0.57658899,1979.4,1978.0,0.5991388]
[1772873760695,1.26294518,1979.5,1978.2,0.3089371]
[1772873760696,0.57658899,1979.1,1978.2,0.3089371]